[Event "Live Chess"]
[Site "Chess.com"]
[Date "2024.06.01"]
[Round "-"]
[White "NAZRIZ1977"]
[Black "KwikPhoenix"]
[Result "0-1"]
[WhiteElo "2163"]
[BlackElo "2465"]
[TimeControl "300"]
[EndTime "15:35:55 PDT"]
[Termination "KwikPhoenix won by resignation"]

1. e4 {[%clk 0:04:56.8]} 1... c5 {[%clk 0:04:58.9]} 2. Nf3 {[%clk 0:04:55.8]}
2... Nc6 {[%clk 0:04:58.5]} 3. d3 {[%clk 0:04:53.5]} 3... g6 {[%clk 0:04:57.4]}
4. g3 {[%clk 0:04:52.7]} 4... Bg7 {[%clk 0:04:56.9]} 5. Bg2 {[%clk 0:04:52]}
5... e6 {[%clk 0:04:56.8]} 6. O-O {[%clk 0:04:48.3]} 6... Nge7 {[%clk
0:04:56.5]} 7. Nbd2 {[%clk 0:04:44]} 7... d5 {[%clk 0:04:55.9]} 8. exd5 {[%clk
0:04:42]} 8... exd5 {[%clk 0:04:55.1]} 9. Nb3 {[%clk 0:04:41.4]} 9... b6 {[%clk
0:04:53.8]} 10. d4 {[%clk 0:04:37.4]} 10... c4 {[%clk 0:04:46.1]} 11. Nbd2
{[%clk 0:04:36.3]} 11... O-O {[%clk 0:04:45.7]} 12. c3 {[%clk 0:04:35.3]} 12...
Bg4 {[%clk 0:04:43]} 13. h3 {[%clk 0:04:33.9]} 13... Bf5 {[%clk 0:04:42.6]} 14.
Re1 {[%clk 0:04:32.1]} 14... Qc8 {[%clk 0:04:40.7]} 15. Kh2 {[%clk 0:04:30.7]}
15... Re8 {[%clk 0:04:40.1]} 16. Ne5 {[%clk 0:04:10.6]} 16... Nxe5 {[%clk
0:04:21.2]} 17. dxe5 {[%clk 0:04:09.5]} 17... Qd7 {[%clk 0:04:20.8]} 18. f4
{[%clk 0:04:02.3]} 18... Rad8 {[%clk 0:04:15.6]} 19. Nf3 {[%clk 0:04:01.1]}
19... Nc6 {[%clk 0:04:11.6]} 20. Be3 {[%clk 0:03:59.3]} 20... Be4 {[%clk
0:04:10.4]} 21. Nd4 {[%clk 0:03:54]} 21... Bxg2 {[%clk 0:04:05.9]} 22. Kxg2
{[%clk 0:03:53.1]} 22... f6 {[%clk 0:04:04.5]} 23. exf6 {[%clk 0:03:20.3]} 23...
Bxf6 {[%clk 0:03:59.4]} 24. Nxc6 {[%clk 0:03:19.5]} 24... Qxc6 {[%clk
0:03:59.3]} 25. Bd4 {[%clk 0:03:18.9]} 25... Rxe1 {[%clk 0:03:53]} 26. Qxe1
{[%clk 0:03:15.7]} 26... Bxd4 {[%clk 0:03:52]} 27. cxd4 {[%clk 0:03:15.6]} 27...
Re8 {[%clk 0:03:50.9]} 28. Qd2 {[%clk 0:03:09.3]} 28... Qe6 {[%clk 0:03:49.9]}
29. Kf2 {[%clk 0:03:06]} 29... Qxh3 {[%clk 0:03:48.5]} 0-1

[Event "Live Chess"]
[Site "Chess.com"]
[Date "2024.06.01"]
[Round "-"]
[White "CarmelJane"]
[Black "GrahamCuthbert"]
[Result "1-0"]
[WhiteElo "2069"]
[BlackElo "1031"]
[TimeControl "300"]
[EndTime "15:36:04 PDT"]
[Termination "CarmelJane won by resignation"]

1. e4 {[%clk 0:04:57.4]} 1... c6 {[%clk 0:04:59.1]} 2. Nc3 {[%clk 0:04:54.4]}
2... d5 {[%clk 0:04:57.8]} 3. Nf3 {[%clk 0:04:47.4]} 3... dxe4 {[%clk
0:04:54.8]} 4. Nxe4 {[%clk 0:04:47.3]} 4... Nf6 {[%clk 0:04:54.1]} 5. Qe2 {[%clk
0:04:46.1]} 5... Bg4 {[%clk 0:04:48.9]} 6. d3 {[%clk 0:04:29.5]} 6... e6 {[%clk
0:04:34.4]} 7. h3 {[%clk 0:04:26.5]} 7... Bxf3 {[%clk 0:04:32.6]} 8. Qxf3 {[%clk
0:04:25]} 8... h6 {[%clk 0:04:28.5]} 9. Nxf6+ {[%clk 0:04:19.7]} 9... Qxf6
{[%clk 0:04:23.1]} 10. Qxf6 {[%clk 0:04:19.1]} 10... gxf6 {[%clk 0:04:23]} 11.
Bd2 {[%clk 0:04:14.9]} 11... Nd7 {[%clk 0:04:19.7]} 12. O-O-O {[%clk 0:04:14]}
12... Bg7 {[%clk 0:04:11.9]} 13. h4 {[%clk 0:04:01.9]} 13... f5 {[%clk
0:04:06.9]} 14. h5 {[%clk 0:03:59.4]} 14... a5 {[%clk 0:03:49.7]} 15. a4 {[%clk
0:03:56.2]} 15... b5 {[%clk 0:03:45.8]} 16. axb5 {[%clk 0:03:56.1]} 16... cxb5
{[%clk 0:03:44.3]} 17. d4 {[%clk 0:03:55]} 17... b4 {[%clk 0:03:31.8]} 18. Bb5
{[%clk 0:03:51.5]} 18... Bxd4 {[%clk 0:03:25.4]} 19. Bf4 {[%clk 0:03:39.6]}
19... Bxb2+ {[%clk 0:02:47.2]} 20. Kxb2 {[%clk 0:03:36.4]} 20... Ra7 {[%clk
0:02:46.6]} 21. Bxd7+ {[%clk 0:03:31.1]} 21... Rxd7 {[%clk 0:02:44.5]} 22. Rxd7
{[%clk 0:03:31]} 22... Kxd7 {[%clk 0:02:44.4]} 23. Ra1 {[%clk 0:03:24.7]} 23...
Ra8 {[%clk 0:02:42.5]} 24. Bxh6 {[%clk 0:03:22.4]} 24... a4 {[%clk 0:02:37.2]}
25. Bg7 {[%clk 0:03:21.1]} 25... a3+ {[%clk 0:02:32.5]} 26. Kb3 {[%clk
0:03:20.5]} 26... Ke7 {[%clk 0:02:29.3]} 27. h6 {[%clk 0:03:19.5]} 27... f6
{[%clk 0:02:27.6]} 28. h7 {[%clk 0:03:18.7]} 28... Kf7 {[%clk 0:02:26.8]} 29.
h8=Q {[%clk 0:03:18.2]} 29... Rxh8 {[%clk 0:02:24]} 30. Bxh8 {[%clk 0:03:18.1]}
30... Kg8 {[%clk 0:02:20.3]} 31. Kxb4 {[%clk 0:03:17.5]} 31... Kxh8 {[%clk
0:02:19.4]} 32. Rxa3 {[%clk 0:03:16.9]} 32... Kg7 {[%clk 0:02:18.4]} 33. Kc5
{[%clk 0:03:14.6]} 1-0

[Event "Live Chess"]
[Site "Chess.com"]
[Date "2024.06.01"]
[Round "-"]
[White "hapehansen"]
[Black "RichardABates"]
[Result "0-1"]
[WhiteElo "2259"]
[BlackElo "2320"]
[TimeControl "300"]
[EndTime "15:36:27 PDT"]
[Termination "RichardABates won by resignation"]

1. d4 {[%clk 0:04:54.4]} 1... Nf6 {[%clk 0:04:58.5]} 2. Nf3 {[%clk 0:04:53.4]}
2... g6 {[%clk 0:04:57]} 3. Bf4 {[%clk 0:04:46.7]} 3... Bg7 {[%clk 0:04:55]} 4.
e3 {[%clk 0:04:44.7]} 4... O-O {[%clk 0:04:53.1]} 5. h3 {[%clk 0:04:43.3]} 5...
d6 {[%clk 0:04:50]} 6. c4 {[%clk 0:04:42]} 6... c5 {[%clk 0:04:45.3]} 7. d5
{[%clk 0:04:39.5]} 7... e6 {[%clk 0:04:41.1]} 8. Nc3 {[%clk 0:04:37.2]} 8...
exd5 {[%clk 0:04:38]} 9. cxd5 {[%clk 0:04:36]} 9... a6 {[%clk 0:04:36.5]} 10. a4
{[%clk 0:04:33.6]} 10... Nh5 {[%clk 0:04:31.6]} 11. Bh2 {[%clk 0:04:29.6]} 11...
f5 {[%clk 0:04:30.4]} 12. Be2 {[%clk 0:04:26.6]} 12... f4 {[%clk 0:04:26.4]} 13.
O-O {[%clk 0:04:08.3]} 13... Nd7 {[%clk 0:04:23.8]} 14. exf4 {[%clk 0:03:38.3]}
14... Nxf4 {[%clk 0:04:21.7]} 15. Re1 {[%clk 0:03:34.9]} 15... Ne5 {[%clk
0:04:17]} 16. Nxe5 {[%clk 0:03:24.1]} 16... Bxe5 {[%clk 0:04:15.1]} 17. Bf1
{[%clk 0:03:15]} 17... Qh4 {[%clk 0:03:57.6]} 18. Ne2 {[%clk 0:02:59.8]} 18...
Nxh3+ {[%clk 0:03:53.7]} 19. gxh3 {[%clk 0:02:55.2]} 19... Qxf2+ {[%clk
0:03:52.2]} 0-1

[Event "Live Chess"]
[Site "Chess.com"]
[Date "2024.06.01"]
[Round "-"]
[White "TedUdale"]
[Black "katoma"]
[Result "0-1"]
[WhiteElo "2106"]
[BlackElo "2056"]
[TimeControl "300"]
[EndTime "15:37:04 PDT"]
[Termination "katoma won by checkmate"]

1. e4 {[%clk 0:04:58.2]} 1... c5 {[%clk 0:04:58]} 2. Nc3 {[%clk 0:04:57.5]} 2...
Nc6 {[%clk 0:04:56.3]} 3. f4 {[%clk 0:04:57]} 3... g6 {[%clk 0:04:54.5]} 4. Nf3
{[%clk 0:04:56]} 4... Bg7 {[%clk 0:04:53.2]} 5. Bb5 {[%clk 0:04:55.6]} 5... Nd4
{[%clk 0:04:49.4]} 6. d3 {[%clk 0:04:53.6]} 6... a6 {[%clk 0:04:46.8]} 7. Bc4
{[%clk 0:04:52.9]} 7... b5 {[%clk 0:04:44.6]} 8. Bb3 {[%clk 0:04:52.3]} 8...
Nxb3 {[%clk 0:04:40.8]} 9. axb3 {[%clk 0:04:51.4]} 9... Bb7 {[%clk 0:04:39.3]}
10. O-O {[%clk 0:04:50.4]} 10... e6 {[%clk 0:04:34.6]} 11. f5 {[%clk 0:04:43.3]}
11... Ne7 {[%clk 0:04:21.3]} 12. fxe6 {[%clk 0:04:36.2]} 12... dxe6 {[%clk
0:04:19.2]} 13. Ng5 {[%clk 0:04:35]} 13... O-O {[%clk 0:04:15]} 14. Qg4 {[%clk
0:04:30.4]} 14... h6 {[%clk 0:03:57.2]} 15. Nf3 {[%clk 0:04:25.9]} 15... f5
{[%clk 0:03:48.6]} 16. Qg3 {[%clk 0:04:10.4]} 16... b4 {[%clk 0:03:36.7]} 17.
Na4 {[%clk 0:04:00.9]} 17... fxe4 {[%clk 0:03:32.5]} 18. dxe4 {[%clk 0:04:00]}
18... Bxe4 {[%clk 0:03:19.4]} 19. Nxc5 {[%clk 0:03:58.6]} 19... Bxf3 {[%clk
0:03:13.1]} 20. Rxf3 {[%clk 0:03:49]} 20... Qd1+ {[%clk 0:02:48]} 21. Rf1 {[%clk
0:03:45.3]} 21... Qxf1# {[%clk 0:02:45.6]} 0-1

[Event "Live Chess"]
[Site "Chess.com"]
[Date "2024.06.01"]
[Round "-"]
[White "wadsy27"]
[Black "KeithArkell"]
[Result "1-0"]
[WhiteElo "2547"]
[BlackElo "2409"]
[TimeControl "300"]
[EndTime "15:37:33 PDT"]
[Termination "wadsy27 won by resignation"]

1. c4 {[%clk 0:04:57.7]} 1... c5 {[%clk 0:04:58.2]} 2. g3 {[%clk 0:04:56.6]}
2... Nc6 {[%clk 0:04:57.2]} 3. Bg2 {[%clk 0:04:55.7]} 3... g6 {[%clk 0:04:56.7]}
4. Nc3 {[%clk 0:04:55.3]} 4... Bg7 {[%clk 0:04:56.1]} 5. Nf3 {[%clk 0:04:55]}
5... Nf6 {[%clk 0:04:55.6]} 6. d4 {[%clk 0:04:54.6]} 6... cxd4 {[%clk
0:04:54.7]} 7. Nxd4 {[%clk 0:04:54.3]} 7... Nxd4 {[%clk 0:04:54.2]} 8. Qxd4
{[%clk 0:04:54]} 8... d6 {[%clk 0:04:53.8]} 9. O-O {[%clk 0:04:53.5]} 9... O-O
{[%clk 0:04:53.1]} 10. Qd3 {[%clk 0:04:53]} 10... Nd7 {[%clk 0:04:51.8]} 11. b3
{[%clk 0:04:47]} 11... Nc5 {[%clk 0:04:49.4]} 12. Qd2 {[%clk 0:04:41.6]} 12...
Rb8 {[%clk 0:04:44.4]} 13. Bb2 {[%clk 0:04:40.5]} 13... b6 {[%clk 0:04:44]} 14.
Rac1 {[%clk 0:04:32.5]} 14... Bb7 {[%clk 0:04:43]} 15. Rfd1 {[%clk 0:04:31.7]}
15... Bxg2 {[%clk 0:04:41.6]} 16. Kxg2 {[%clk 0:04:31.6]} 16... Qd7 {[%clk
0:04:37.1]} 17. Nd5 {[%clk 0:04:28.9]} 17... Bxb2 {[%clk 0:04:35.6]} 18. Qxb2
{[%clk 0:04:28]} 18... Qe6 {[%clk 0:04:28.4]} 19. f3 {[%clk 0:04:21.6]} 19...
Rb7 {[%clk 0:04:23.8]} 20. h4 {[%clk 0:04:12.7]} 20... Qe5 {[%clk 0:04:22.5]}
21. Qxe5 {[%clk 0:04:08.7]} 21... dxe5 {[%clk 0:04:21.8]} 22. Nb4 {[%clk
0:04:01.4]} 22... Rc8 {[%clk 0:04:19.5]} 23. Rd5 {[%clk 0:03:40.7]} 23... f6
{[%clk 0:04:18.1]} 24. Rcd1 {[%clk 0:03:39.5]} 24... Kf7 {[%clk 0:04:17]} 25.
Rd8 {[%clk 0:03:36.9]} 25... Rxd8 {[%clk 0:04:16.2]} 26. Rxd8 {[%clk 0:03:35.2]}
26... e6 {[%clk 0:04:10.8]} 27. Kf2 {[%clk 0:03:13.6]} 27... Rc7 {[%clk
0:04:08.4]} 28. Nd3 {[%clk 0:03:00.8]} 28... Nxd3+ {[%clk 0:04:04.4]} 29. exd3
{[%clk 0:02:58.1]} 29... h5 {[%clk 0:03:58.1]} 30. Ke3 {[%clk 0:02:56.9]} 30...
f5 {[%clk 0:03:55.6]} 31. d4 {[%clk 0:02:50.1]} 31... exd4+ {[%clk 0:03:54.3]}
32. Kxd4 {[%clk 0:02:50]} 32... Kf6 {[%clk 0:03:53.6]} 33. f4 {[%clk 0:02:47.4]}
33... Ke7 {[%clk 0:03:42]} 34. Rg8 {[%clk 0:02:26.9]} 34... Kf7 {[%clk
0:03:38.7]} 35. Ra8 {[%clk 0:02:23.2]} 35... Kf6 {[%clk 0:03:35.9]} 36. b4
{[%clk 0:02:21.7]} 36... Rd7+ {[%clk 0:03:35]} 37. Kc3 {[%clk 0:02:20.9]} 37...
e5 {[%clk 0:03:34.3]} 38. fxe5+ {[%clk 0:02:16.7]} 38... Kxe5 {[%clk 0:03:33.7]}
39. Rg8 {[%clk 0:02:15.7]} 39... Rd6 {[%clk 0:03:27.3]} 40. c5 {[%clk
0:02:12.9]} 40... bxc5 {[%clk 0:03:26.2]} 41. bxc5 {[%clk 0:02:12.8]} 41... Ra6
{[%clk 0:03:23.4]} 42. Kc4 {[%clk 0:02:09.5]} 42... Rxa2 {[%clk 0:03:21.4]} 43.
Rxg6 {[%clk 0:02:07.9]} 43... a6 {[%clk 0:03:14.6]} 44. Kb3 {[%clk 0:01:52.7]}
44... Ra5 {[%clk 0:03:03]} 45. Kb4 {[%clk 0:01:51]} 45... Rb5+ {[%clk
0:03:02.1]} 46. Kc4 {[%clk 0:01:48.5]} 46... Ra5 {[%clk 0:02:54.7]} 47. c6
{[%clk 0:01:45.6]} 47... Ra1 {[%clk 0:02:45.5]} 48. Kc5 {[%clk 0:01:44.4]} 48...
a5 {[%clk 0:02:39.3]} 49. c7 {[%clk 0:01:40.3]} 49... Rc1+ {[%clk 0:02:28]} 50.
Kb6 {[%clk 0:01:39.4]} 50... Kd5 {[%clk 0:02:26.4]} 51. Rg8 {[%clk 0:01:27.4]}
1-0

[Event "Live Chess"]
[Site "Chess.com"]
[Date "2024.06.01"]
[Round "-"]
[White "MaksymYurii"]
[Black "Mikhail_Golubev"]
[Result "0-1"]
[WhiteElo "937"]
[BlackElo "2584"]
[TimeControl "300"]
[EndTime "15:37:43 PDT"]
[Termination "Mikhail_Golubev won by checkmate"]

1. e4 {[%clk 0:04:55.3]} 1... d5 {[%clk 0:04:57.8]} 2. e5 {[%clk 0:04:51.7]}
2... c5 {[%clk 0:04:54.5]} 3. Nf3 {[%clk 0:04:49.3]} 3... Nc6 {[%clk 0:04:53]}
4. d4 {[%clk 0:04:46.8]} 4... cxd4 {[%clk 0:04:49.1]} 5. Nxd4 {[%clk 0:04:45.7]}
5... Nxe5 {[%clk 0:04:46.3]} 6. Bb5+ {[%clk 0:04:37.4]} 6... Bd7 {[%clk
0:04:44.6]} 7. Bxd7+ {[%clk 0:04:28.1]} 7... Qxd7 {[%clk 0:04:44.5]} 8. O-O
{[%clk 0:04:26]} 8... Nf6 {[%clk 0:04:43.8]} 9. Nc3 {[%clk 0:04:24.7]} 9... e6
{[%clk 0:04:39.1]} 10. Bf4 {[%clk 0:04:18.3]} 10... Bd6 {[%clk 0:04:27.9]} 11.
Bxe5 {[%clk 0:04:12.5]} 11... Bxe5 {[%clk 0:04:26.5]} 12. Nb3 {[%clk 0:04:05.1]}
12... O-O {[%clk 0:04:15.2]} 13. Nc5 {[%clk 0:03:59]} 13... Qc7 {[%clk
0:04:10.9]} 14. Nd3 {[%clk 0:03:53.1]} 14... Bxh2+ {[%clk 0:04:07.9]} 15. Kh1
{[%clk 0:03:51]} 15... Bd6 {[%clk 0:03:56.2]} 16. Nb5 {[%clk 0:03:47.6]} 16...
Qb6 {[%clk 0:03:52.8]} 17. Nxd6 {[%clk 0:03:45.9]} 17... Qxd6 {[%clk 0:03:52.7]}
18. f3 {[%clk 0:03:36]} 18... Nh5 {[%clk 0:03:45.5]} 19. f4 {[%clk 0:03:27.7]}
19... Ng3+ {[%clk 0:03:43.7]} 20. Kg1 {[%clk 0:03:23.6]} 20... Nxf1 {[%clk
0:03:43.6]} 21. Qxf1 {[%clk 0:03:21]} 21... Rac8 {[%clk 0:03:42.8]} 22. c3
{[%clk 0:03:12.6]} 22... Rc4 {[%clk 0:03:41.5]} 23. Ne5 {[%clk 0:03:06.2]} 23...
Re4 {[%clk 0:03:39.7]} 24. Rd1 {[%clk 0:02:56.7]} 24... Qb6+ {[%clk 0:03:36.1]}
25. Kh1 {[%clk 0:02:53.3]} 25... Qxb2 {[%clk 0:03:33.9]} 26. Rc1 {[%clk
0:02:24]} 26... Qd2 {[%clk 0:03:20.4]} 27. Nf3 {[%clk 0:02:16.9]} 27... Qxf4
{[%clk 0:02:48.4]} 28. Re1 {[%clk 0:01:44.2]} 28... Rxe1 {[%clk 0:02:46.5]} 29.
Qxe1 {[%clk 0:01:41.8]} 29... Rc8 {[%clk 0:02:42.4]} 30. Qb1 {[%clk 0:01:19.7]}
30... Rxc3 {[%clk 0:02:36.3]} 31. Ng1 {[%clk 0:00:42.9]} 31... Qh6+ {[%clk
0:02:31.9]} 32. Nh3 {[%clk 0:00:34.4]} 32... Rc1+ {[%clk 0:02:31.4]} 33. Qxc1
{[%clk 0:00:31.9]} 33... Qxc1+ {[%clk 0:02:31]} 34. Kh2 {[%clk 0:00:30.9]} 34...
d4 {[%clk 0:02:30.3]} 35. a4 {[%clk 0:00:29.3]} 35... d3 {[%clk 0:02:29.4]} 36.
Nf2 {[%clk 0:00:26.5]} 36... d2 {[%clk 0:02:28.2]} 37. Nd3 {[%clk 0:00:24.6]}
37... Qc7+ {[%clk 0:02:25.8]} 38. Kh3 {[%clk 0:00:20.7]} 38... d1=Q {[%clk
0:02:25.7]} 39. Nf2 {[%clk 0:00:18.5]} 39... Qh5# {[%clk 0:02:23.8]} 0-1

[Event "Live Chess"]
[Site "Chess.com"]
[Date "2024.06.01"]
[Round "-"]
[White "NebodarMatevich"]
[Black "lyricalschemes"]
[Result "0-1"]
[WhiteElo "1576"]
[BlackElo "2472"]
[TimeControl "300"]
[EndTime "15:38:00 PDT"]
[Termination "lyricalschemes won by resignation"]

1. e4 {[%clk 0:04:59]} 1... Nf6 {[%clk 0:04:58.5]} 2. e5 {[%clk 0:04:58.1]} 2...
Nd5 {[%clk 0:04:57.7]} 3. c4 {[%clk 0:04:57.7]} 3... Nb6 {[%clk 0:04:56.2]} 4.
d4 {[%clk 0:04:57.6]} 4... d6 {[%clk 0:04:55.1]} 5. f4 {[%clk 0:04:52.6]} 5...
dxe5 {[%clk 0:04:40.2]} 6. fxe5 {[%clk 0:04:51.6]} 6... Nc6 {[%clk 0:04:36.8]}
7. Nf3 {[%clk 0:04:50.4]} 7... Bg4 {[%clk 0:04:35.1]} 8. Be2 {[%clk 0:04:47.1]}
8... e6 {[%clk 0:04:32.2]} 9. O-O {[%clk 0:04:46.3]} 9... Qd7 {[%clk 0:04:27.9]}
10. a4 {[%clk 0:03:36.3]} 10... a5 {[%clk 0:04:20]} 11. Be3 {[%clk 0:03:20.1]}
11... O-O-O {[%clk 0:04:16.5]} 12. Nc3 {[%clk 0:03:10]} 12... Bxf3 {[%clk
0:04:14.3]} 13. Bxf3 {[%clk 0:02:58.4]} 13... Nxd4 {[%clk 0:04:09.4]} 14. Bxd4
{[%clk 0:02:46.1]} 14... Qxd4+ {[%clk 0:04:09.3]} 15. Kh1 {[%clk 0:02:41.2]}
15... Qxe5 {[%clk 0:04:05.4]} 16. Qb3 {[%clk 0:02:37.7]} 16... Qc5 {[%clk
0:03:59.9]} 17. Rad1 {[%clk 0:02:14.7]} 17... Be7 {[%clk 0:03:56.9]} 18. Be2
{[%clk 0:02:04.5]} 18... Rxd1 {[%clk 0:03:51.5]} 19. Rxd1 {[%clk 0:02:03.5]}
19... Rd8 {[%clk 0:03:49.5]} 20. Rxd8+ {[%clk 0:02:02.4]} 20... Bxd8 {[%clk
0:03:48.1]} 21. Ne4 {[%clk 0:02:02.3]} 21... Qd4 {[%clk 0:03:44.8]} 22. Ng5
{[%clk 0:01:37.5]} 22... Bxg5 {[%clk 0:03:41.5]} 0-1

[Event "Live Chess"]
[Site "Chess.com"]
[Date "2024.06.01"]
[Round "-"]
[White "gobbles19"]
[Black "CheckThis4"]
[Result "0-1"]
[WhiteElo "2288"]
[BlackElo "2688"]
[TimeControl "300"]
[EndTime "15:38:20 PDT"]
[Termination "CheckThis4 won by resignation"]

1. e4 {[%clk 0:04:58.3]} 1... d5 {[%clk 0:04:53.6]} 2. exd5 {[%clk 0:04:56.7]}
2... c6 {[%clk 0:04:52.6]} 3. dxc6 {[%clk 0:04:55.4]} 3... Nxc6 {[%clk
0:04:51.1]} 4. Nf3 {[%clk 0:04:55.1]} 4... e5 {[%clk 0:04:49.7]} 5. Bc4 {[%clk
0:04:50.2]} 5... Nf6 {[%clk 0:04:36.1]} 6. d3 {[%clk 0:04:47.7]} 6... Bg4 {[%clk
0:04:29.7]} 7. h3 {[%clk 0:04:43]} 7... Bh5 {[%clk 0:04:28.3]} 8. Be3 {[%clk
0:04:38.4]} 8... Bb4+ {[%clk 0:04:22]} 9. c3 {[%clk 0:04:36.2]} 9... Bd6 {[%clk
0:04:20.7]} 10. Nbd2 {[%clk 0:04:35]} 10... O-O {[%clk 0:04:19.1]} 11. O-O
{[%clk 0:04:33.6]} 11... Qe7 {[%clk 0:04:10.9]} 12. Re1 {[%clk 0:04:23.1]} 12...
Rad8 {[%clk 0:04:08.6]} 13. Qc2 {[%clk 0:04:19.8]} 13... h6 {[%clk 0:03:59.4]}
14. Nh4 {[%clk 0:04:11.3]} 14... Qd7 {[%clk 0:03:55.6]} 15. Ne4 {[%clk
0:04:03.4]} 15... Be7 {[%clk 0:03:38.4]} 16. Nc5 {[%clk 0:03:50]} 16... Bxc5
{[%clk 0:03:31.7]} 17. Bxc5 {[%clk 0:03:48.6]} 17... Rfe8 {[%clk 0:03:30.6]} 18.
a4 {[%clk 0:03:18.5]} 18... g5 {[%clk 0:03:25.8]} 19. Nf3 {[%clk 0:03:02.5]}
19... Bxf3 {[%clk 0:03:23.2]} 20. gxf3 {[%clk 0:03:02.4]} 20... Qxh3 {[%clk
0:03:21.5]} 21. Qe2 {[%clk 0:02:57.2]} 21... Kg7 {[%clk 0:02:48.8]} 22. Qf1
{[%clk 0:02:30.3]} 22... Qxf3 {[%clk 0:02:47]} 23. Qg2 {[%clk 0:02:29.6]} 23...
Qf5 {[%clk 0:02:31]} 24. b4 {[%clk 0:02:22.4]} 24... e4 {[%clk 0:02:24.6]} 25.
Rad1 {[%clk 0:01:57.5]} 25... Ne5 {[%clk 0:02:10.7]} 26. dxe4 {[%clk 0:01:56]}
26... Nf3+ {[%clk 0:02:06.5]} 27. Kf1 {[%clk 0:01:49.5]} 27... Nxe1 {[%clk
0:01:47.8]} 28. exf5 {[%clk 0:01:42.1]} 28... Nxg2 {[%clk 0:01:46.3]} 29. Rxd8
{[%clk 0:01:41.1]} 29... Rxd8 {[%clk 0:01:45]} 30. Kxg2 {[%clk 0:01:39.8]} 30...
h5 {[%clk 0:01:41]} 31. a5 {[%clk 0:01:33]} 31... a6 {[%clk 0:01:29.3]} 32. Bd4
{[%clk 0:01:29.5]} 32... h4 {[%clk 0:01:22.6]} 33. Be2 {[%clk 0:01:26.5]} 33...
Rd6 {[%clk 0:01:19.8]} 34. Bf3 {[%clk 0:01:23.7]} 34... Kh6 {[%clk 0:01:11]} 35.
Bxb7 {[%clk 0:01:20.7]} 35... Nh5 {[%clk 0:01:09]} 36. Be4 {[%clk 0:01:11.8]}
36... Nf4+ {[%clk 0:01:05.1]} 37. Kf3 {[%clk 0:01:09]} 37... h3 {[%clk 0:01:03]}
38. Kg3 {[%clk 0:01:05.6]} 38... Ne2+ {[%clk 0:00:57.4]} 0-1

[Event "Live Chess"]
[Site "Chess.com"]
[Date "2024.06.01"]
[Round "-"]
[White "AndrewBak1"]
[Black "LL220284LL"]
[Result "0-1"]
[WhiteElo "1868"]
[BlackElo "2506"]
[TimeControl "300"]
[EndTime "15:38:25 PDT"]
[Termination "LL220284LL won by resignation"]

1. e4 {[%clk 0:04:57.4]} 1... Nf6 {[%clk 0:04:58.8]} 2. e5 {[%clk 0:04:55.2]}
2... Nd5 {[%clk 0:04:58.1]} 3. d4 {[%clk 0:04:54.8]} 3... d6 {[%clk 0:04:57.5]}
4. Nf3 {[%clk 0:04:54.5]} 4... dxe5 {[%clk 0:04:55.9]} 5. Nxe5 {[%clk
0:04:54.4]} 5... e6 {[%clk 0:04:53.4]} 6. Bd3 {[%clk 0:04:50.4]} 6... Nd7 {[%clk
0:04:52.5]} 7. Nf3 {[%clk 0:04:48.9]} 7... Be7 {[%clk 0:04:51.1]} 8. O-O {[%clk
0:04:47.4]} 8... O-O {[%clk 0:04:50.2]} 9. Nc3 {[%clk 0:04:42.4]} 9... Nxc3
{[%clk 0:04:47]} 10. bxc3 {[%clk 0:04:42.3]} 10... c5 {[%clk 0:04:46.4]} 11. Be3
{[%clk 0:04:27.3]} 11... Qc7 {[%clk 0:04:42.6]} 12. Ng5 {[%clk 0:03:50.1]} 12...
h6 {[%clk 0:04:40]} 13. Nh7 {[%clk 0:03:23.3]} 13... Rd8 {[%clk 0:04:37.1]} 14.
Qg4 {[%clk 0:03:20.3]} 14... Nf6 {[%clk 0:04:27.7]} 15. Nxf6+ {[%clk 0:03:18.2]}
15... Bxf6 {[%clk 0:04:27.6]} 16. Bxh6 {[%clk 0:02:37.2]} 16... cxd4 {[%clk
0:04:19.7]} 17. Qe4 {[%clk 0:02:24.6]} 17... gxh6 {[%clk 0:04:05.8]} 18. Qh7+
{[%clk 0:02:19.3]} 18... Kf8 {[%clk 0:04:04.6]} 19. Qxh6+ {[%clk 0:02:08.6]}
19... Bg7 {[%clk 0:04:01.6]} 20. Qh4 {[%clk 0:02:06.7]} 20... dxc3 {[%clk
0:03:55.1]} 21. Rfe1 {[%clk 0:02:03.3]} 21... Rd4 {[%clk 0:03:53.2]} 22. Qh5
{[%clk 0:01:54.8]} 22... Rd5 {[%clk 0:03:50.7]} 23. Qh4 {[%clk 0:01:51.2]} 23...
Qe7 {[%clk 0:03:47.5]} 24. Qa4 {[%clk 0:01:30]} 24... Bd7 {[%clk 0:03:44.7]} 25.
Qb3 {[%clk 0:01:29.6]} 25... Bc6 {[%clk 0:03:41.5]} 26. Be4 {[%clk 0:01:28.4]}
26... Rd7 {[%clk 0:03:36.4]} 27. Bxc6 {[%clk 0:01:24.9]} 27... bxc6 {[%clk
0:03:36.3]} 0-1

[Event "Live Chess"]
[Site "Chess.com"]
[Date "2024.06.01"]
[Round "-"]
[White "SavagePawn7"]
[Black "blunderabit"]
[Result "0-1"]
[WhiteElo "642"]
[BlackElo "1777"]
[TimeControl "300"]
[EndTime "15:38:25 PDT"]
[Termination "blunderabit won by resignation"]

1. e4 {[%clk 0:04:55.2]} 1... c5 {[%clk 0:04:57.2]} 2. d4 {[%clk 0:04:53.5]}
2... cxd4 {[%clk 0:04:55.2]} 3. c3 {[%clk 0:04:52.1]} 3... Nf6 {[%clk
0:04:53.2]} 4. cxd4 {[%clk 0:04:48.2]} 4... Nxe4 {[%clk 0:04:51.3]} 5. Qf3
{[%clk 0:04:37.9]} 5... d5 {[%clk 0:04:48.5]} 6. Nc3 {[%clk 0:04:29.3]} 6...
Nxc3 {[%clk 0:04:41.7]} 7. bxc3 {[%clk 0:04:27.4]} 7... e6 {[%clk 0:04:40]} 8.
Bb5+ {[%clk 0:04:12.7]} 8... Nc6 {[%clk 0:04:37.6]} 9. Ne2 {[%clk 0:04:08.9]}
9... Qa5 {[%clk 0:04:35.9]} 10. Bd3 {[%clk 0:03:55.7]} 10... Nxd4 {[%clk
0:04:25.4]} 11. Nxd4 {[%clk 0:03:48.4]} 11... Qxc3+ {[%clk 0:04:23.8]} 12. Bd2
{[%clk 0:03:46.5]} 12... Qxa1+ {[%clk 0:04:22.2]} 13. Ke2 {[%clk 0:03:44.6]}
13... Qxd4 {[%clk 0:04:21.7]} 14. Be3 {[%clk 0:03:39.1]} 14... Qb2+ {[%clk
0:04:19]} 15. Bd2 {[%clk 0:03:37.1]} 15... Bb4 {[%clk 0:04:15.9]} 16. Rb1 {[%clk
0:03:26.1]} 16... Qxd2+ {[%clk 0:04:12]} 17. Kf1 {[%clk 0:03:21.4]} 17... Bd7
{[%clk 0:04:06.8]} 0-1